Cogmind - Beta 10.2 @@@ ROGUE MODE // 2021.04.03 @ 10:53:39 Player: Grug Result: Destroyed by G-34 Mercenary with Small Laser Performance ------------- Evolutions (1) 500 Regions Visited (3) 600 Robots Destroyed (25) 125 Value Destroyed (572) 572 Prototype IDs (0) 0 Alien Tech Used (0) 0 Bonus (0) 0 TOTAL SCORE: 1797 Bonus ------- None Cogmind --------- Core Integrity 0/400 Matter 300/300 Energy 130/900 System Corruption 13% Temperature Cool (6) Movement Walking (120) Location -9/Materials Parts ------- > --- POWER (1) -------- (None) > --- PROPULSION (4) --- Aluminum Leg Aluminum Leg Aluminum Leg > --- UTILITY (2) ------ High-capacity Battery High-capacity Battery > --- WEAPON (2) ------- Autogun Autogun > --- INVENTORY (4) ---- Improved Terrain Scanner Assault Rifle Mining Laser Peak State ------------ > --- POWER ------------ Light Ion Engine > --- PROPULSION ------- Aluminum Leg Aluminum Leg Aluminum Leg > --- UTILITY ---------- Small Storage Unit Visual Processing Unit > --- WEAPON ----------- Mace Mace > --- INVENTORY -------- Improved Terrain Scanner Light Armor Plating Assault Rifle Grenade Launcher Mining Laser [Rating: 11] Favorites ----------- Power Ion Engine Engine Ion Engine Propulsion Aluminum Leg Leg Aluminum Leg Utility Small Storage Unit Storage Small Storage Unit Processor Visual Processing Unit Protection Light Armor Plating Weapon Assault Rifle Energy Gun Beam Rifle Ballistic Gun Assault Rifle Launcher Grenade Launcher Special Weapon Mining Laser Impact Weapon Mace Build | -11 -10 -10 -9 ------- Run | Scr Mat Min Mat Slots Evolved 2 | . . . 2 Power . | . . . . Propulsion 2 | . . . 2 Utility . | . . . . Weapon . | . . . . Parts Attached 35 | 7 5 7 16 Power 4 | 2 . 1 1 Engine 4 | 2 . 1 1 Core . | . . . . Reactor . | . . . . Propulsion 7 | 2 . 1 4 Treads . | . . . . Leg 7 | 2 . 1 4 Wheel . | . . . . Hover . | . . . . Flight . | . . . . Utility 5 | 1 1 . 3 Device . | . . . . Storage 3 | 1 . . 2 Processor 1 | . 1 . . Hackware . | . . . . Protection 1 | . . . 1 Artifact . | . . . . Weapon 19 | 2 4 5 8 Energy Gun 5 | 1 4 . . Energy Cannon . | . . . . Ballistic Gun 6 | 1 . 1 4 Ballistic Cannon . | . . . . Launcher 5 | . . 3 2 Special Weapon 1 | . . 1 . Impact Weapon 2 | . . . 2 Slashing Weapon . | . . . . Piercing Weapon . | . . . . Special Melee Weapon . | . . . . Unidentified Prototypes . | . . . . Parts Lost 19 | . 6 . 13 Power 3 | . 1 . 2 Propulsion 4 | . 1 . 3 Utility 3 | . . . 3 Weapon 9 | . 4 . 5 Highest Loss Streak 8 | . 6 . 8 Average Slot Usage (%) 82 | . 92 92 61 Engine 11 | . 13 14 5 Leg 25 | . 27 28 20 Storage 12 | . 14 14 10 Processor 9 | . 9 14 5 Energy Gun 6 | . 22 . . Ballistic Gun 6 | . 4 10 5 Launcher 5 | . . 5 8 Special Weapon 2 | . . 5 . Impact Weapon 1 | . . . 4 Naked Turns . | . . . . Heaviest Build 16 | 13 15 16 16 Greatest Support 30 | 20 20 20 30 Greatest Overweight (x) 3 | . 1 . 3 Average Overweight (x) . | . . . . Largest Inventory Capacity 6 | 6 6 6 6 Average Capacity 5 | 5 6 6 5 Most Carried 6 | 4 6 6 6 Average Carried 3 | 1 4 3 4 Final Capacity 6 | 6 6 6 4 Final Carried 6 | 2 4 6 3 Class Distribution -------------------- 100% | Mutant Dominant Class ---------------- Mutant | -10/Materials Mutant | -10/Mines Mutant | -9/Materials Resources | -11 -10 -10 -9 ----------- Run | Scr Mat Min Mat Matter Collected 732 | 270 48 103 311 Remotely . | . . . . Salvage Created 786 | . 189 188 409 Parts 56 | . 19 11 26 Haulers Intercepted . | . . . . Recyclers Shooed 2 | . 1 1 . Parts Field Recycled . | . . . . Retrieved Matter . | . . . . Parts Self-Destructed . | . . . . Prevented . | . . . . Kills | -11 -10 -10 -9 ------- Run | Scr Mat Min Mat Combat Hostiles Destroyed 12 | . 3 . 9 Melee 1 | . . . 1 Guns 4 | . 3 . 1 AOE 7 | . . . 7 Classes Destroyed 8 | . 3 2 3 Worker 3 | . 1 . 2 Builder 2 | . . . 2 Tunneler 4 | . . 3 1 Recycler 2 | . . 2 . Watcher 2 | . 2 . . Grunt 7 | . 3 . 4 Brawler 1 | . . . 1 Sentry 4 | . . . 4 Best Kill Streak 6 | . 2 1 6 Combat Bots Only 4 | . 2 . 4 Max Kills in Single Turn 3 | . 1 1 3 Gunslinging . | . . . . Exploded 3 | . . . 3 Melee 1 | . . . 1 Uniques/NPCs Destroyed . | . . . . Combat | -11 -10 -10 -9 -------- Run | Scr Mat Min Mat Damage Taken 1849 | . 545 . 1304 Core 521 | . 111 . 410 Absorbed by Shields . | . . . . Core Remaining (%) 77 | 100 . 55 . Volleys Fired 64 | . 24 11 29 Largest 2 | . 2 2 2 Hottest 120 | . 112 120 63 Shots Fired 97 | . 44 16 37 Gun 73 | . 44 11 18 Cannon . | . . . . Launcher 19 | . . . 19 Special 5 | . . 5 . Kinetic 35 | . 6 11 18 Thermal 43 | . 38 5 . Explosive 16 | . . . 16 Electromagnetic 3 | . . . 3 Robot Hit Streak 9 | . 9 5 4 Robot Miss Streak 5 | . 5 3 4 Penetration Max . | . . . . Secondary Targets 1 | . 1 . . Max Gunslinging Chain 1 | . 1 . . Shots Hit Robots 52 | . 23 9 20 Core Hits 47 | . 12 7 28 Critical Hits . | . . . . Critical Kills . | . . . . Critical Parts Destroyed . | . . . . Melee Attacks 14 | . . . 14 Impact 14 | . . . 14 Slashing . | . . . . Piercing . | . . . . Sneak Attacks 2 | . . . 2 Combat Hostiles . | . . . . Follow-up Attacks 2 | . . . 2 Damage Inflicted 1376 | . 328 132 916 Guns 567 | . 328 108 131 Cannons . | . . . . Explosions 531 | . . . 531 Melee 237 | . . . 237 Ramming 17 | . . . 17 Kinetic 296 | . 57 108 131 Thermal 438 | . 271 24 143 Explosive 292 | . . . 292 Electromagnetic 96 | . . . 96 Impact 237 | . . . 237 Slashing . | . . . . Piercing . | . . . . Highest Corruption 13 | . . . 13 Average Corruption 12 | . . . 12 Corruption Purged . | . . . . Effects 12 | . . . 12 Message Errors 4 | . . . 4 Matter Fused 2 | . . . 2 Heat Flow Errors 2 | . . . 2 Data Loss (minor) 1 | . . . 1 Targeting Errors 2 | . . . 2 Weapon Failures 1 | . . . 1 Overload Shots . | . . . . Overflow Damage 60 | . . . 60 Projectiles . | . . . . Explosions . | . . . . Melee 60 | . . . 60 Knockbacks 1 | . . . 1 Impact 1 | . . . 1 Kinetic . | . . . . Secondary . | . . . . Self-Inflicted Damage 5 | . . . 5 Shots . | . . . . Rammed 15 | . . . 15 Targets Rammed 15 | . . . 15 Kicked . | . . . . Crushed . | . . . . Highest Temperature 351 | . 351 40 268 Average Temperature 97 | . 129 15 67 Received Heat Transfer 774 | . 309 . 465 Effects 1 | . . . 1 Interference 1 | . . . 1 Siege Activations . | . . . . Robots Corrupted . | . . . . Combat Hostiles . | . . . . Parts Fried . | . . . . Impact Corruptions 2 | . . . 2 Robots Melted . | . . . . Combat Hostiles . | . . . . Parts Melted . | . . . . Heat Transferred 1040 | . 740 50 250 Parts Sabotaged . | . . . . Parts Stolen . | . . . . Parts Stripped . | . . . . Power Chain Reactions 2 | . . . 2 Missiles Intercepted . | . . . . Alert | -11 -10 -10 -9 ------- Run | Scr Mat Min Mat Peak Influence 176 | . 154 20 176 Initial 1 | . . . 1 Average 42 | . 65 3 77 Maximum Alert Level . | . . . . Low Security (%) 100 | 100 100 100 100 Level 1 . | . . . . Level 2 . | . . . . Level 3 . | . . . . Level 4 . | . . . . Level 5 . | . . . . High Security . | . . . . Max Security . | . . . . Squads Dispatched 3 | . 2 . 1 Investigation 2 | . 1 . 1 Extermination . | . . . . Reinforcement 1 | . 1 . . Assault . | . . . . Garrison . | . . . . Intercept . | . . . . Construction Impeded . | . . . . Haulers Reinforced . | . . . . Stealth | -11 -10 -10 -9 --------- Run | Scr Mat Min Mat Distress Signals 2 | . 1 . 1 Communications Jammed . | . . . . Distress Signals . | . . . . Times Spotted 23 | . 12 . 11 Peak Tracking Total 5 | . 4 . 5 Tactical Retreats 1 | . 1 . . Traps | -11 -10 -10 -9 ------- Run | Scr Mat Min Mat Traps Triggered 2 | . 1 . 1 Indirectly . | . . . . Trap Hack Attempts . | . . . . Triggered . | . . . . Disarmed . | . . . . Reprogrammed . | . . . . Reused . | . . . . Traps Extracted . | . . . . Installed . | . . . . Triggered . | . . . . Machines | -11 -10 -10 -9 ---------- Run | Scr Mat Min Mat Machines Disabled 2 | . 1 . 1 Max in Single Turn 1 | . 1 . 1 Machines Sabotaged . | . . . . Garrisons Compromised . | . . . . Overloaded Fab Kills . | . . . . Fab Network Shutdowns . | . . . . Hacking | -11 -10 -10 -9 --------- Run | Scr Mat Min Mat Machines Accessed 1 | . . . 1 Terminals 1 | . . . 1 Fabricators . | . . . . Repair Stations . | . . . . Recycling Units . | . . . . Scanalyzers . | . . . . Garrison Access . | . . . . Total Hacks 2 | . . . 2 Successful 2 | . . . 2 Failed . | . . . . Catastrophic . | . . . . Database Lockouts . | . . . . Manual . | . . . . Terminals 2 | . . . 2 Fabricators . | . . . . Repair Stations . | . . . . Recycling Units . | . . . . Scanalyzers . | . . . . Garrison Access . | . . . . Terminal Hacks 2 | . . . 2 Record 2 | . . . 2 Fabricator Hacks . | . . . . Repair Station Hacks . | . . . . Recycling Unit Hacks . | . . . . Scanalyzer . | . . . . Garrison Access Hacks . | . . . . Unauthorized Hacks . | . . . . Terminals . | . . . . Fabricators . | . . . . Repair Stations . | . . . . Recycling Units . | . . . . Scanalyzers . | . . . . Garrison Access . | . . . . Data Cores Recovered . | . . . . Used . | . . . . Hacking Detections 1 | . . . 1 Full Trace Events . | . . . . Feedback Events . | . . . . Feedback Blocked . | . . . . Robot Schematics Acquired . | . . . . Robots Built . | . . . . Matter . | . . . . Time . | . . . . Total Robot Build Rating . | . . . . Part Schematics Acquired . | . . . . Parts Built . | . . . . Matter . | . . . . Time . | . . . . Total Part Build Rating . | . . . . Parts Repaired . | . . . . Time . | . . . . Parts Recycled . | . . . . Recycled Matter . | . . . . Retrieved Matter . | . . . . Retrieved Components . | . . . . Parts Scanalyzed . | . . . . Part Schematics Acquired . | . . . . Parts Damaged . | . . . . Bothacking | -11 -10 -10 -9 ------------ Run | Scr Mat Min Mat Used RIF Installer . | . . . . Robots Hacked . | . . . . Non-combat . | . . . . Combat . | . . . . Robot Hacks Applied . | . . . . Relay Couplers Released . | . . . . Robots Rewired . | . . . . Allies Hacked . | . . . . Hacks Repelled . | . . . . Allies | -11 -10 -10 -9 -------- Run | Scr Mat Min Mat Total Allies . | . . . . Largest Group . | . . . . Highest-Rated Group . | . . . . Highest-Rated Ally . | . . . . Total Orders . | . . . . Ally Attacks . | . . . . Total Damage . | . . . . Kills . | . . . . Allies Corrupted . | . . . . Allies Melted . | . . . . Intel | -11 -10 -10 -9 ------- Run | Scr Mat Min Mat Robot Analysis Total . | . . . . Derelict Logs Recovered 2 | . . 2 . Drone Launches . | . . . . Drone Recoveries . | . . . . Exploration | -11 -10 -10 -9 ------------- Run | Scr Mat Min Mat Turns Passed 1693 | 85 445 631 532 Spaces Moved 1130 | 67 289 479 295 Core 54 | 15 . . 39 Treads . | . . . . Legs 1076 | 52 289 479 256 Wheels . | . . . . Hover . | . . . . Flight . | . . . . Fastest Speed 50 | 50 120 120 50 Average Speed 120 | 104 120 120 124 Slowest Speed 200 | 120 150 120 200 Overloaded Moves . | . . . . Propulsion Burnouts . | . . . . Robots Hopped . | . . . . Cave-ins Triggered . | . . . . Exploration Rate (%) 32 | 4 32 69 25 Regions Visited 3 Branch Regions 1 Pre-discovered Areas 1 | . . 1 . Known Exits Taken . | . . . . Unknown Exits Taken 3 | 1 1 1 . Scrap Searched 1 | . . 1 . Spaces Dug . | . . . . Terrain Destroyed 70 | . . 1 69 Melee . | . . . . Projectile 1 | . . 1 . AOE 69 | . . . 69 Terrain Rammed . | . . . . Walls Destroyed . | . . . . Machines Disabled . | . . . . Actions | -11 -10 -10 -9 --------- Run | Scr Mat Min Mat Total 1331 | 81 345 510 395 Wait 40 | . 14 3 23 Move 1127 | 66 288 478 295 Hop . | . . . . Pick Up 29 | 8 9 7 5 Fast Attach 7 | . 1 1 5 Attach 21 | 6 3 4 8 Detach 1 | . . 1 . Swap 7 | 1 1 2 3 Drop 9 | . 5 3 1 Fire 64 | . 24 11 29 Melee 11 | . . . 11 Ram 15 | . . . 15 Kick . | . . . . Crush . | . . . . Escape Stasis . | . . . . Rewire . | . . . . Trap . | . . . . Miscellaneous . | . . . . Route ------- -11/Scrapyard -10/Materials -10/Mines (discovered 2 exits: *Mat x2) -9/Materials (discovered 1 exit: Min) History --------- Turn | Location | Event 6 | -11/Scrapyard | Discovered new exit (range 15) 86 | -11/Scrapyard | Entered Materials 301 | -10/Materials | Build established: Mutant 419 | -10/Materials | Discovered new exit (range 8) 531 | -10/Materials | Entered Mines 557 | -10/Mines | Lost 6 parts (1p1n4w) 817 | -10/Mines | Discovered new exit (range 10) 977 | -10/Mines | Discovered new exit (range 10) 979 | -10/Mines | Learned location of Zion (-6) 1017 | -10/Mines | Found a hidden stash of uninstalled traps 1072 | -10/Mines | Received a Rocket Launcher from a helpful Derelict 1162 | -10/Mines | Entered Materials 1162 | -9/Materials | Evolved 2 slots: Propulsion x2 1163 | -9/Materials | Identified exit to Mines 1455 | -9/Materials | System corruption reached 10% 1460 | -9/Materials | Core integrity fell below 50% 1501 | -9/Materials | Lost 8 parts (1p3n1u3w) 1523 | -9/Materials | Core integrity fell below 20% 1583 | -9/Materials | Lost 3 parts (2u1w) 1694 | -9/Materials | Destroyed by G-34 Mercenary with Small Laser Last Messages --------------- 01609_ U-05 Engineer lays Concrete. 01612_ BUHDEGKZ JG7CU7P8T1HKP5#AGZM8M8FQ%PFM 01612_ U-05 Engineer lays Concrete. 01612_ Acquired 12 matter. 01612_ U-05 Engineer lays Concrete. 01623_ K-01 Serf collects debris. 01627_ U-05 Engineer repairs door. 01628_ Acquired Hcp. Battery. 01636_ K-01 Serf collects debris. 01637_ Acquired Autogun. 01646_ K-01 Serf collects debris. 01658_ R-06 Scavenger collects Lgt. Treads. 01660_ K-01 Serf collects debris. 01663_ R-06 Scavenger collects Imp. Terrain Scanner. 01664_ Acquired Aluminum Leg. 01669_ R-06 Scavenger collects Lgt. Armor Plating. 01670_ Acquired 31 matter. 01672_ Acquired 23 matter. 01673_ Acquired 6 matter. 01675_ GW:TXT3B1OLUKVO 61FP&OK Map ----- +----------------------------------------------------+ | | | | | | | | | | | | | ??????????????########???????????????????????????? | | ??????????????# #???????????????????????????? | | ??????????????# ###########?????????????????? | | ??????????????# # #?????????????????? | | ??????????????# # #?????????????????? | | ############### +!![ #?????????????????? | | + + # """ #?????????????????? | | T %##### #####+## """ #?????????????????? | | *#???# = # """ #?????????????????? | | #???# % + ! #?????????????????? | | #???# # !#?????????????????? | | """ ##### #+###+#####?????????????????? | | """ + ###???????????????? | | """ ##### ""#???????????????? | | #???# % " T"#???????????????? | | ###+####???# ######### % " ""#???????????????? | | # #????# ##??????# % """ ###???????????????? | | # #????# ## ###### k% #?????????????????? | | #????# ## # #?????????????????? | | # #????# ##!!! # @ ##????????????????? | | ? ?????# ##!! ! + u ?????????? | | ?# #?????# ##!! ### ????????? | | ?# #?????# ## #?# """ a ?????????? | | ?# #?????# ## #?# "Y" g a?????????? | | ## #######+#########?## ??????????? | | # # #?????# """ ""??????????? | | # #?????# """ "???????????? | | # #?????+ "????????????????? | | + """ """ #?????? ???????????????? | | # """ """ #?????? ???????????????? | | # """ """ #?????? ??????????????? | | # # #??????######+###??????????????? | | ## ##############??????????????????????????????? | | ?# #???????????????????????????????????????????? | | ?# #???????????????????????????????????????????? | | ?# #???????????????????????????????????????????? | | ?# #???????????????????????????????????????????? | | ?# #???????????????????????????????????????????? | | ?+ +???????????????????????????????????????????? | | ?# #???????????????????????????????????????????? | | ?# #???????????????????????????????????????????? | | ?# #???????????????????????????????????????????? | | ?# #???????????????????????????????????????????? | | ?# #???????????????????????????????????????????? | +----------------------------------------------------+ Best States ------------- Heat Dissipation 28 Energy Generation 10 Energy Capacity 900 Matter Stores 300 Matter Capacity 300 Sight Range 18 Terrain Scan Density 10 Armor Coverage 150 Evasion (%) 40 Item Schematics ----------------- None Robot Schematics ------------------ None Fabricated ------------ Nothing Alien Tech Used ----------------- None Achievements -------------- System Compromised Challenges ------------ None Game ------ Seed ExperimentalGlidesysCarapace Manual? 0 Play Time 00:25:55 Cumulative 2.2 hours Start 2021.04.03 @ 10:26:57 End 2021.04.03 @ 10:53:39 Sessions 1 Manual Loads 0 Difficulty Rogue Special Mode None Game No. 4 Rogue 4 Adventurer 0 Explorer 0 Win Type - Total 0 Types 0/0/0/0/0/0/0/0/0 Lore% 3 Gallery% 4 Achievement% 4 Wizard Run 0 Options --------- ASCII 0 Keyboard 1 Movement Numpad Keybinds 0 Fullscreen 1 Font 16/Terminus Map View 76x50 Tactical HUD 1 Map Filters NONE Filters NONE Steam 1 RUN: 7f287da2-9fac-4b53-8b32-8e2393b10be7